Cogmind - Beta 13 @@@ ROGUE MODE // 2024.07.09 @ 12:19:16 Player: weedlord420 Result: Self-destructed Performance ------------- Evolutions (1) 500 Regions Visited (2) 400 Robots Destroyed (50) 250 Value Destroyed (1166) 1166 Prototype IDs (7) 140 Alien Tech Used (0) 0 Bonus (71) 71 TOTAL SCORE: 2527 Bonus ------- High Alert Combat Kills 71 Cogmind --------- Core Integrity 225/400 Matter 230/300 Energy 250/250 System Corruption 0% Temperature Danger (406) Movement Treading (240) Ox1 Location -9/Materials Parts ------- > --- POWER (1) -------- Ion Engine > --- PROPULSION (3) --- Light Treads > --- UTILITY (3) ------ Medium Storage Unit Light Armor Plating > --- WEAPON (2) ------- Improved Medium Laser Improved Medium Laser > --- INVENTORY (10) --- Ion Engine Light Nuclear Core Improved Treads Signal Interpreter Improved Targeting Computer ECM Suite Improved EM Shotgun Improved EM Shotgun Improved EM Shotgun EMP Blaster Peak State ------------ > --- POWER ------------ Ion Engine > --- PROPULSION ------- Light Treads Light Treads Improved Treads > --- UTILITY ---------- Small Storage Unit Medium Storage Unit Shield Generator > --- WEAPON ----------- Improved EM Shotgun Improved EM Shotgun > --- INVENTORY -------- Light Nuclear Core Light Treads Light Treads Light Treads Signal Interpreter Improved Targeting Computer ECM Suite Improved EM Shotgun Assault Rifle Light Cannon [Rating: 16] Favorites ----------- Power Ion Engine Engine Ion Engine Propulsion Light Treads Treads Light Treads Flight Unit Improved Flight Unit Utility Small Storage Unit Device Shield Generator Storage Small Storage Unit Protection Light Armor Plating Weapon Light Cannon Energy Gun Improved EM Shotgun Ballistic Gun Assault Rifle Ballistic Cannon Light Cannon Build | -11 -10 -9 ------- Run | Yrd Mat Mat Slots Evolved 2 | . . 2 Power . | . . . Propulsion 1 | . . 1 Utility 1 | . . 1 Weapon . | . . . Parts Attached 29 | 6 3 20 Power 2 | 1 . 1 Engine 2 | 1 . 1 Core . | . . . Reactor . | . . . Propulsion 13 | 2 1 10 Treads 12 | 2 1 9 Leg . | . . . Wheel . | . . . Hover . | . . . Flight 1 | . . 1 Utility 4 | 1 . 3 Device 1 | . . 1 Storage 2 | 1 . 1 Processor . | . . . Hackware . | . . . Protection 1 | . . 1 Artifact . | . . . Weapon 10 | 2 2 6 Energy Gun 6 | . . 6 Energy Cannon . | . . . Ballistic Gun 2 | 2 . . Ballistic Cannon 2 | . 2 . Launcher . | . . . Special Weapon . | . . . Impact Weapon . | . . . Slashing Weapon . | . . . Piercing Weapon . | . . . Special Melee Weapon . | . . . Unidentified Prototypes 3 | . . 3 Parts Lost 2 | . . 2 Power . | . . . Propulsion 1 | . . 1 Utility 1 | . . 1 Weapon . | . . . Highest Loss Streak 1 | . . 1 To Critical Strikes . | . . . Average Slot Usage (%) 87 | . 85 90 Engine 12 | . 14 11 Treads 29 | . 28 31 Device 2 | . . 4 Storage 15 | . 14 17 Protection 1 | . . 2 Energy Gun 5 | . . 10 Ballistic Gun 8 | . 15 . Ballistic Cannon 12 | . 12 11 Naked Turns . | . . . Heaviest Build 29 | 14 16 29 Greatest Support 63 | 40 40 63 Greatest Overweight (x) . | . . . Average Overweight (x) . | . . . Largest Inventory Capacity 10 | 8 8 10 Average Capacity 8 | 7 8 9 Most Carried 10 | 5 8 10 Average Carried 6 | . 4 9 Final Capacity 10 | 8 8 10 Final Carried 10 | . 8 10 Class Distribution -------------------- 92% | Mutant 7% | Scavenger-Mutant Dominant Class ---------------- Mutant | -10/Materials Mutant | -9/Materials Resources | -11 -10 -9 ----------- Run | Yrd Mat Mat Matter Collected 1017 | 251 222 544 Remotely . | . . . Salvage Created 1892 | . 385 1507 Parts 111 | . 27 84 Haulers Intercepted 6 | . 2 4 Recyclers Shooed 2 | . . 2 Parts Field Recycled . | . . . Retrieved Matter . | . . . Parts Self-Destructed . | . . . Prevented . | . . . Kills | -11 -10 -9 ------- Run | Yrd Mat Mat Combat Hostiles Destroyed 30 | . 7 23 Guns 10 | . 3 7 Cannons 17 | . 4 13 AOE 3 | . . 3 Classes Destroyed 11 | . 5 6 Worker 1 | . . 1 Builder 2 | . 1 1 Tunneler 1 | . . 1 Hauler 6 | . 2 4 Recycler 4 | . . 4 Operator 1 | . . 1 Watcher 5 | . 2 3 Swarmer 5 | . 2 3 Grunt 17 | . 5 12 Brawler 2 | . . 2 Sentry 6 | . . 6 Best Kill Streak 8 | . 2 8 Combat Bots Only 8 | . 2 8 Max Kills in Single Turn 3 | . 1 3 Gunslinging . | . . . Exploded 3 | . . 3 Melee . | . . . Uniques/NPCs Destroyed . | . . . Combat | -11 -10 -9 -------- Run | Yrd Mat Mat Hostile Shots Fired 179 | . 27 152 Missed 47 | . 9 38 Damage Taken 1515 | . 229 1286 Core 175 | . . 175 Absorbed by Shields 229 | . . 229 Regen/Repaired (Parts) 64 | . . 64 Core Remaining (%) 100 | 100 100 . Volleys Fired 110 | . 30 80 Largest 2 | . 2 2 Hottest 112 | . 70 112 Shots Fired 221 | . 61 160 Gun 94 | . 30 64 Cannon 127 | . 31 96 Launcher . | . . . Special . | . . . Kinetic 157 | . 61 96 Thermal 16 | . . 16 Explosive . | . . . Electromagnetic 48 | . . 48 Robot Hit Streak 15 | . 6 15 Robot Miss Streak 5 | . 5 4 Penetration Max . | . . . Secondary Targets 1 | . . 1 Max Gunslinging Chain 1 | . . 1 Shots Hit Robots 140 | . 30 110 Core Hits 69 | . 15 54 Critical Kills . | . . . Critical Parts Destroyed . | . . . Critical Strikes 6 | . . 6 Burn 1 | . . 1 Blast 5 | . . 5 Melee Attacks . | . . . Impact . | . . . Slashing . | . . . Piercing . | . . . Sneak Attacks . | . . . Combat Hostiles . | . . . Follow-up Attacks . | . . . Damage Inflicted 2915 | . 476 2439 Guns 1151 | . 208 943 Cannons 1535 | . 268 1267 Explosions 221 | . . 221 Melee . | . . . Ramming 8 | . . 8 Kinetic 1743 | . 476 1267 Thermal 411 | . . 411 Explosive . | . . . Electromagnetic 753 | . . 753 Impact . | . . . Slashing . | . . . Piercing . | . . . Highest Corruption 3 | . 3 . Average Corruption 2 | . 2 . Corruption Purged . | . . . Corruption Blocked . | . . . Effects 17 | . 17 . Message Errors 3 | . 3 . Matter Fused 3 | . 3 . Heat Flow Errors 1 | . 1 . Energy Discharges 3 | . 3 . Data Loss (minor) 4 | . 4 . Data Loss (major) 1 | . 1 . Misfires 1 | . 1 . Alerts 1 | . 1 . Overload Shots . | . . . Overflow Damage 6 | . . 6 Projectiles 6 | . . 6 Explosions . | . . . Melee . | . . . Knockbacks 17 | . 7 10 Impact . | . . . Kinetic 17 | . 7 10 Secondary . | . . . Self-Inflicted Damage 27 | . . 27 Shots 1 | . . 1 Rammed 5 | . . 5 Targets Rammed 5 | . . 5 Kicked . | . . . Crushed . | . . . Highest Temperature 400 | . 128 400 Average Temperature 54 | . 25 61 Received Heat Transfer 502 | . 57 445 Effects 1 | . . 1 Shutdowns 1 | . . 1 Siege Activations . | . . . Robots Corrupted . | . . . Combat Hostiles . | . . . Parts Fried 3 | . . 3 Impact Corruptions . | . . . Robots Melted . | . . . Combat Hostiles . | . . . Parts Melted . | . . . Heat Transferred 831 | . . 831 Parts Sabotaged . | . . . Parts Stolen . | . . . Parts Stripped . | . . . Power Chain Reactions 3 | . . 3 Alert | -11 -10 -9 ------- Run | Yrd Mat Mat Peak Influence 628 | . 190 628 Initial 16 | . . 16 Average 158 | . 50 288 Maximum Alert Level 2 | . . 2 Low Security (%) 72 | 100 100 40 Level 1 12 | . . 28 Level 2 14 | . . 31 Level 3 . | . . . Level 4 . | . . . Level 5 . | . . . High Security . | . . . Max Security . | . . . Squads Dispatched 5 | . 2 3 Investigation 3 | . 2 1 Extermination . | . . . Reinforcement 2 | . . 2 Assault . | . . . Garrison . | . . . Intercept . | . . . Searches Triggered . | . . . Construction Impeded . | . . . Haulers Reinforced . | . . . Active Scanning Responses . | . . . Cargo Convoy Interrupts . | . . . Stealth | -11 -10 -9 --------- Run | Yrd Mat Mat Distress Signals 5 | . . 5 Communications Jammed . | . . . Distress Signals . | . . . Times Spotted 55 | . 14 41 Peak Tracking Total 8 | . 3 8 Tactical Retreats 3 | . . 3 Traps | -11 -10 -9 ------- Run | Yrd Mat Mat Traps Triggered 4 | . 3 1 Indirectly . | . . . Trap Hack Attempts . | . . . Triggered . | . . . Disarmed . | . . . Reprogrammed . | . . . Reused . | . . . Traps Extracted . | . . . Installed . | . . . Triggered . | . . . Machines | -11 -10 -9 ---------- Run | Yrd Mat Mat Machines Disabled 2 | . . 2 Max in Single Turn 1 | . . 1 Machines Repaired . | . . . Machines Dismantled . | . . . Machines Sabotaged . | . . . Overloaded Fab Kills . | . . . Hacking | -11 -10 -9 --------- Run | Yrd Mat Mat Machines Accessed 8 | . 4 4 Terminals 6 | . 4 2 Fabricators . | . . . Repair Stations 1 | . . 1 Recycling Units . | . . . Scanalyzers 1 | . . 1 Garrison Access . | . . . Total Hacks 19 | . 10 9 Successful 8 | . 2 6 Failed 11 | . 8 3 Catastrophic 1 | . 1 . Database Lockouts . | . . . Manual . | . . . Terminals 14 | . 10 4 Fabricators . | . . . Repair Stations 3 | . . 3 Recycling Units . | . . . Scanalyzers 2 | . . 2 Garrison Access . | . . . Terminal Hacks 5 | . 2 3 Prototype ID Bank 2 | . 1 1 Emergency Access Points 2 | . . 2 Locate Traps 1 | . 1 . Fabricator Hacks . | . . . Repair Station Hacks 2 | . . 2 Scan Component 1 | . . 1 Repair 1 | . . 1 Recycling Unit Hacks . | . . . Scanalyzer 1 | . . 1 Insert Component 1 | . . 1 Garrison Access Hacks . | . . . Unauthorized Hacks . | . . . Terminals . | . . . Fabricators . | . . . Repair Stations . | . . . Recycling Units . | . . . Scanalyzers . | . . . Garrison Access . | . . . Data Cores Recovered . | . . . Used . | . . . Hacking Detections 6 | . 4 2 Full Trace Events 1 | . 1 . Feedback Events . | . . . Feedback Blocked . | . . . Robot Schematics Acquired . | . . . Robots Built . | . . . Authchips . | . . . Time . | . . . Total Robot Build Rating . | . . . Part Schematics Acquired . | . . . Parts Built . | . . . Authchips . | . . . Time . | . . . Total Part Build Rating . | . . . Parts Repaired 1 | . . 1 Time 26 | . . 26 Parts Recycled . | . . . Recycled Matter . | . . . Retrieved Matter . | . . . Retrieved Components . | . . . Parts Scanalyzed . | . . . Part Schematics Acquired . | . . . Parts Damaged . | . . . Bothacking | -11 -10 -9 ------------ Run | Yrd Mat Mat Used RIF Installer . | . . . Robots Hacked . | . . . Non-combat . | . . . Combat . | . . . Robot Hacks Applied . | . . . Relay Couplers Released . | . . . Fabnet Peak Effective % . | . . . Robots Rewired . | . . . Allies Hacked . | . . . Hacks Repelled . | . . . Allies | -11 -10 -9 -------- Run | Yrd Mat Mat Total Allies . | . . . Largest Group . | . . . Highest-Rated Group . | . . . Highest-Rated Ally . | . . . Total Orders . | . . . Ally Attacks . | . . . Total Damage . | . . . Kills . | . . . Allies Corrupted . | . . . Allies Melted . | . . . Intel | -11 -10 -9 ------- Run | Yrd Mat Mat Robot Analysis Total . | . . . Derelict Logs Recovered . | . . . Drone Launches . | . . . Drone Recoveries . | . . . Exploration | -11 -10 -9 ------------- Run | Yrd Mat Mat Turns Passed 2018 | 62 1031 925 Spaces Moved 975 | 47 581 347 Core 21 | 21 . . Treads 954 | 26 581 347 Legs . | . . . Wheels . | . . . Hover . | . . . Flight . | . . . Fastest Speed 50 | 50 160 160 Average Speed 157 | 110 160 160 Slowest Speed 160 | 160 160 160 Overloaded Moves . | . . . Propulsion Burnouts . | . . . Robots Hopped . | . . . Cave-ins Triggered . | . . . Exploration Rate (%) 49 | 3 99 46 Regions Visited 2 Branch Regions . Pre-discovered Areas . | . . . Known Exits Taken . | . . . Unknown Exits Taken 2 | 1 1 . Scrap Searched . | . . . Spaces Dug . | . . . Terrain Destroyed 9 | . . 9 Melee . | . . . Projectile . | . . . AOE 9 | . . 9 Terrain Rammed . | . . . Walls Destroyed . | . . . Machines Disabled . | . . . Actions | -11 -10 -9 --------- Run | Yrd Mat Mat Total 1234 | 57 621 556 Wait 72 | . . 72 Move 973 | 46 580 347 Hop . | . . . Pick Up 28 | 5 8 15 Fast Attach 4 | 1 . 3 Attach 7 | 5 . 2 Detach . | . . . Swap 18 | . 3 15 Drop 17 | . . 17 Fire 110 | . 30 80 Melee . | . . . Ram . | . . . Kick . | . . . Crush 5 | . . 5 Escape Stasis . | . . . Rewire . | . . . Trap . | . . . Miscellaneous . | . . . Route ------- -11/Scrapyard -10/Materials (discovered 5 exits: *Mat x3 / [*Min x2]) -9/Materials (discovered 1 exit: [*Mat]) History --------- Turn | Location | Event 8 | -11/Scrapyard | Discovered new exit (range 16) 63 | -11/Scrapyard | Entered Materials 231 | -10/Materials | Discovered new exit (range 16) 311 | -10/Materials | Build established: Mutant 341 | -10/Materials | Discovered new exit (range 14) 548 | -10/Materials | Discovered new exit (range 3) 893 | -10/Materials | Discovered new exit (range 13) 976 | -10/Materials | Discovered new exit (range 15) 1094 | -10/Materials | Entered another Materials area 1094 | -9/Materials | Evolved 2 slots: Propulsion x1, Utility x1 1224 | -9/Materials | Repaired Lgt. Treads 1780 | -9/Materials | Destroyed 8 combat bots 1837 | -9/Materials | Discovered new exit (range 9) 2019 | -9/Materials | Self-destructed Last Messages --------------- Identified Imp. Medium Laser. K-01 Serf collects debris. Acquired Imp. Medium Laser. Dropped Sml. Storage Unit. K-01 Serf collects debris. Acquired Ion Engine. K-01 Serf collects debris. W-16 Scout destroyed. K-01 Serf collects debris. O-16 Technician: "IFF HANDSHAKE FAILED. SECURING TERMINAL." ALERT: Hostiles spotted, dispatching reinforcements to Terminal M001. G-34 Mercenary destroyed. Switching to secondary target: L-31 Rogue. L-31 Rogue suffers critical hit (Burn). Lgt. Treads severed. Power failure, Ion Engine shutdown. Lgt. Treads severed. R-06 Scavenger collects Aluminum Leg. Map ----- +----------------------------------------------------+ | ?????????????????????????????????????????????????? | | ?????????????????????????????????????????????????? | | ?????????????????????????????????????????????????? | | ?????????????????????????????????????????????????? | | ?????????????????????????????????????????????????? | | ?????????????????????????????????????????????????? | | ???#####?????????????????????????????????????????? | | ???# #?????????????????????????????????????????? | | ???# < #?????????????????????????????????????????? | | ???# #?????????????????????????????????????????? | | ???# #?????????????????????????????????????????? | | ???# #?????????????????????????????????????????? | | ???# #?????????????????????????????????????????? | | ??## ##????????????????????????????????????????? | | ### #????????????????????????????????????????? | | #????????????????????????????????????????? | | % #????????????????????????????????????????? | | ! #????????????????????????????????????????? | | ### #????????????????????????????????????????? | | ### #????????????????????????????? #?????????? | | " #?# #???????????????????????????? #?????????? | | T #?# ==#???##########??############ ##????????? | | " #?# =!#???# #??# #????????? | | #?# %#???# """"" #### k #????????? | | ###?#[=[#???# """"" + g= T ?????????? | | #?# ==#???# """"" ####@ """ #????????? | | #?# *!#???# """"" #??# l """"" ????????????? | | #?# =%#???# """"" #??# """""??????????????? | | #?# !=#???# """"" #??# """""? ?????????? | | #?# ##### """"" #??# """ #????????? | | #?# + #??#* #????????? | | ###?# #####+####??#g! ! #????????? | | #T### ### ###?# #????????? | | r #????????? | | != ????????? | | %=* ?????????? | | #######+####### ! ##### ?????????? | | ??????? ??????##+###???# ####??????????? | | ??????? ???????????????# #?????????????? | | ???????""???????????????# T????????????? | | ?????""??????????????? ### ""????????????? | | " ??????????????????????## #?? ##????????????? | | " #???????????????????????#/##??? #?????????????? | | " #???????????????????????? ?????? #?????????????? | | #??????????????????????????????????????????????? | | #??????????????????????????????????????????????? | | ###??????????????????????????????????????????????? | | ?????????????????????????????????????????????????? | | ?????????????????????????????????????????????????? | | ?????????????????????????????????????????????????? | +----------------------------------------------------+ Best States ------------- Heat Dissipation 28 Energy Generation 10 Energy Capacity 250 Matter Stores 300 Matter Capacity 300 Sight Range 16 Terrain Scan Density 10 Armor Coverage 150 Evasion (%) 50 Recoil Reduction 3 Item Schematics ----------------- None Robot Schematics ------------------ None Fabricated ------------ Nothing Alien Tech Used ----------------- None Achievements -------------- None Challenges ------------ None Game ------ Seed LauncherMetaProcessor Manual? 0 Play Time 00:15:04 Cumulative 22.8 hours Start 2024.07.09 @ 12:06:51 End 2024.07.09 @ 12:19:16 Sessions 1 Manual Loads 0 Difficulty Rogue Special Mode None Game No. 52 Rogue 51 Adventurer 1 Explorer 0 Win Type - Total 0 Types 0/0/0/0/0/0/0/0/0 Lore% 9 Gallery% 23 Achievement% 19 Wizard Run 0 Options --------- Layout 1 ASCII 0 Keyboard 0 Movement Mouse Keybinds 0 Fullscreen 2 Font 24/Terminus Map View 50x35 Zoom Use 0% Tactical HUD 0 Map Filters NONE Filters NONE Steam 1 RUN: 40be3a0e-b2f8-4ac8-ae91-c89fbb6d0397